fUSD/lending_fUSD_20240802
["ID","MTS","AMOUNT","RATE_DAILY","PERIOD"]
[333919397,1722630643849,-862.31,0.00016438,2]
[333919399,1722630643861,-2246.56,0.00016438,2]
[333919401,1722630643870,-500.0,0.00016438,2]
[333919403,1722630643880,-2215.15,0.00016438,2]
[333919405,1722630643890,-500.0,0.00016438,2]
[333919408,1722630643900,-505.76,0.00016438,2]
[333919410,1722630643910,-2003.16,0.00016438,2]
[333919414,1722630643920,-500.0,0.00016438,2]
[333919416,1722630643930,-995.83,0.00016438,2]
[333919418,1722630643940,-500.0,0.00016438,2]
[333919420,1722630643950,-500.0,0.00016438,2]
[333919422,1722630643959,-1851.55,0.00016438,2]
[333919424,1722630643969,-1254.27,0.00016438,2]
[333919426,1722630643979,-3729.89,0.00016438,2]
[333919428,1722630643988,-1024.01,0.00016438,2]
[333919430,1722630643998,-812.36,0.00016438,2]
[333919432,1722630644008,-500.0,0.00016438,2]
[333919434,1722630644017,-500.0,0.00016438,2]
[333919436,1722630644026,-992.42,0.00016438,2]
[333919438,1722630644036,-500.0,0.00016438,2]
[333919440,1722630644045,-958.2,0.00016438,2]
[333919442,1722630644055,-500.0,0.00016438,2]
[333919444,1722630644084,-1498.94,0.00016438,2]
[333919446,1722630644094,-500.0,0.00016438,2]
[333919448,1722630644104,-2683.69,0.00016438,2]
[333919450,1722630644113,-990.33,0.00016438,2]
[333919452,1722630644124,-500.0,0.00016438,2]
[333919454,1722630644133,-500.0,0.00016438,2]
[333919456,1722630644143,-500.0,0.00016438,2]
[333919457,1722630644153,-2702.03,0.00016438,2]
[333919459,1722630644163,-500.0,0.00016438,2]
[333919461,1722630644173,-509.15,0.00016438,2]
[333919463,1722630644183,-500.0,0.00016438,2]
[333919465,1722630644193,-2347.27,0.00016438,2]
[333919466,1722630644203,-1662.23,0.00016438,2]
[333919467,1722630644212,-500.0,0.00016438,2]
[333919468,1722630644222,-500.0,0.00016438,2]
[333919469,1722630644232,-500.0,0.00016438,2]
[333919470,1722630644242,-500.0,0.00016438,2]
[333919471,1722630644255,-545.34,0.00016438,2]
[333919472,1722630644264,-500.0,0.00016438,2]
[333919473,1722630644274,-1281.32,0.00016438,2]
[333919474,1722630644284,-500.0,0.00016438,2]
[333919475,1722630644295,-500.0,0.00016438,2]
[333919476,1722630644304,-666.01,0.00016438,2]
[333919477,1722630644314,-500.0,0.00016438,2]
[333919478,1722630644323,-782.98,0.00016438,2]
[333919479,1722630644335,-500.0,0.00016438,2]
[333919480,1722630644345,-500.0,0.00016438,2]
[333919481,1722630644354,-500.0,0.00016438,2]
[333919482,1722630644364,-2287.13,0.00016438,2]
[333919483,1722630644374,-583.34,0.00016438,2]
[333919484,1722630644386,-2173.13,0.00016438,2]
[333919485,1722630644395,-1896.97,0.00016438,2]
[333919486,1722630644404,-500.0,0.00016438,2]
[333919488,1722630644417,-500.0,0.00016438,2]
[333919489,1722630644427,-910.69,0.00016438,2]
[333919491,1722630644436,-771.82,0.00016438,2]
[333919493,1722630644447,-935.87,0.00016438,2]
[333919496,1722630644461,-1431.56,0.00016438,2]
[333919497,1722630644470,-500.0,0.00016438,2]
[333919499,1722630644479,-1332.51,0.00016438,2]
[333919501,1722630644489,-500.0,0.00016438,2]
[333919503,1722630644498,-500.0,0.00016438,2]
[333919505,1722630644508,-500.0,0.00016438,2]
[333919508,1722630644518,-643.74966356,0.00016438,2]
[333919510,1722630644527,-1776.13,0.00016438,2]
[333919512,1722630644536,-500.0,0.00016438,2]
[333919514,1722630644546,-500.0,0.00016438,2]
[333919516,1722630644556,-1789.72,0.00016438,2]
[333919517,1722630644584,-500.0,0.00016438,2]
[333919520,1722630644594,-524.58,0.00016438,2]
[333919521,1722630644603,-500.0,0.00016438,2]
[333919524,1722630644613,-1337.06,0.00016438,2]
[333919525,1722630644622,-1966.1,0.00016438,2]
[333919527,1722630644631,-500.0,0.00016438,2]
[333919529,1722630644641,-500.0,0.00016438,2]
[333919531,1722630644651,-500.0,0.00016438,2]
[333919533,1722630644661,-500.0,0.00016438,2]
[333919535,1722630644670,-500.0,0.00016438,2]
[333919537,1722630644679,-2325.56,0.00016438,2]
[333919539,1722630644689,-500.0,0.00016438,2]
[333919541,1722630644699,-562.58,0.00016438,2]
[333919543,1722630644708,-2277.86,0.00016438,2]
[333919545,1722630644718,-745.89,0.00016438,2]
[333919547,1722630644728,-500.0,0.00016438,2]
[333919549,1722630644738,-500.0,0.00016438,2]
[333919551,1722630644748,-500.0,0.00016438,2]
[333919553,1722630644757,-561.16,0.00016438,2]
[333919555,1722630644767,-1307.5,0.00016438,2]
[333919557,1722630644776,-500.0,0.00016438,2]
[333919559,1722630644786,-2035.21408936,0.00016438,2]
[333919648,1722630645690,-294.07591064,0.00016438,2]
[333919650,1722630645699,-1471.92408936,0.00016438,2]
[333919704,1722630646387,-128.23591064,0.00016438,2]
[333919705,1722630646396,-1242.7,0.00016438,2]
[333919706,1722630646405,-727.21,0.00016438,2]
[333919707,1722630646415,-980.62,0.00016438,2]
[333919708,1722630646425,-500.0,0.00016438,2]
[333919709,1722630646435,-524.58,0.00016438,2]
[333919710,1722630646445,-1789.21,0.00016438,2]
[333919711,1722630646454,-500.0,0.00016438,2]
[333919712,1722630646464,-532.37,0.00016438,2]
[333919713,1722630646473,-1778.27,0.00016438,2]
[333919714,1722630646483,-500.0,0.00016438,2]
[333919715,1722630646496,-967.12,0.00016438,2]
[333919716,1722630646505,-889.2,0.00016438,2]
[333919717,1722630646514,-520.26,0.00016438,2]
[333919718,1722630646524,-368.69646478,0.00016438,2]
[333919719,1722630646534,-1734.82,0.00016438,2]
[333919720,1722630646544,-1857.46,0.00016438,2]
[333919721,1722630646553,-500.0,0.00016438,2]
[333919722,1722630646562,-571.14,0.00016438,2]
[333919723,1722630646571,-861.2,0.00016438,2]
[333919724,1722630646580,-1302.45,0.00016438,2]
[333919725,1722630646609,-500.0,0.00016438,2]
[333919726,1722630646618,-500.0,0.00016438,2]
[333919727,1722630646628,-671.66,0.00016438,2]
[333919728,1722630646637,-678.82,0.00016438,2]
[333919729,1722630646646,-1802.11,0.00016438,2]
[333919730,1722630646655,-500.0,0.00016438,2]
[333919731,1722630646665,-500.0,0.00016438,2]
[333919732,1722630646673,-1195.54,0.00016438,2]
[333919733,1722630646683,-3598.93,0.00016438,2]
[333919734,1722630646692,-525.01,0.00016438,2]
[333919735,1722630646701,-258.17269916,0.00016438,2]
[333919736,1722630646711,-748.27,0.00016438,2]
[333919737,1722630646720,-500.0,0.00016438,2]
[333919738,1722630646729,-875.07,0.00016438,2]
[333919739,1722630646738,-688.33,0.00016438,2]
[333919740,1722630646747,-500.0,0.00016438,2]
[333919741,1722630646757,-853.06,0.00016438,2]
[333919742,1722630646767,-1010.9,0.00016438,2]
[333919743,1722630646776,-952.47,0.00016438,2]
[333919744,1722630646785,-500.0,0.00016438,2]
[333919745,1722630646794,-1674.67,0.00016438,2]
[333919746,1722630646804,-1309.67,0.00016438,2]
[333919747,1722630646813,-616.61,0.00016438,2]
[333919748,1722630646823,-864.53,0.00016438,2]
[333919749,1722630646832,-1502.73,0.00016438,2]
[333919750,1722630646841,-1304.04,0.00016438,2]
[333919751,1722630646851,-500.0,0.00016438,2]
[333919752,1722630646861,-2338.38,0.00016438,2]
[333919753,1722630646871,-806.45,0.00016438,2]
[333919754,1722630646880,-2747.66,0.00016438,2]
[333919755,1722630646889,-918.14,0.00016438,2]
[333919756,1722630646898,-2751.16,0.00016438,2]
[333919757,1722630646908,-937.02,0.00016438,2]
[333919758,1722630646917,-2415.24,0.00016438,2]
[333919759,1722630646928,-595.74,0.00016438,2]
[333919760,1722630646938,-500.0,0.00016438,2]
[333919761,1722630646947,-1459.97,0.00016438,2]
[333919762,1722630646956,-1777.18,0.00016438,2]
[333919763,1722630646966,-500.0,0.00016438,2]
[333919764,1722630646975,-1322.57,0.00016438,2]
[333919765,1722630646984,-745.65,0.00016438,2]
[333919766,1722630646994,-1916.55,0.00016438,2]
[333919767,1722630647003,-500.0,0.00016438,2]
[333919768,1722630647013,-1376.66,0.00016438,2]
[333919769,1722630647022,-500.0,0.00016438,2]
[333919770,1722630647031,-3075.31,0.00016438,2]
[333919771,1722630647040,-564.29,0.00016438,2]
[333919772,1722630647050,-1481.1,0.00016438,2]
[333919773,1722630647059,-500.0,0.00016438,2]
[333919774,1722630647068,-500.0,0.00016438,2]
[333919775,1722630647078,-500.0,0.00016438,2]
[333919776,1722630647088,-1591.04,0.00016438,2]
[333919777,1722630647112,-500.0,0.00016438,2]
[333919778,1722630647122,-500.0,0.00016438,2]
[333919779,1722630647131,-500.0,0.00016438,2]
[333919780,1722630647140,-2935.25,0.00016438,2]
[333919781,1722630647149,-500.0,0.00016438,2]
[333919782,1722630647158,-500.0,0.00016438,2]
[333919784,1722630647167,-1526.1,0.00016438,2]
[333919785,1722630647177,-500.0,0.00016438,2]
[333919787,1722630647186,-500.0,0.00016438,2]
[333919789,1722630647195,-500.0,0.00016438,2]
[333919791,1722630647205,-1535.82,0.00016438,2]
[333919793,1722630647215,-400.0,0.00016438,2]
[333919795,1722630647224,-1001.04,0.00016438,2]
[333919797,1722630647233,-500.0,0.00016438,2]
[333919799,1722630647242,-1254.61,0.00016438,2]
[333919801,1722630647252,-1716.15,0.00016438,2]
[333919802,1722630647266,-1351.35,0.00016438,2]
[333919803,1722630647275,-566.64,0.00016438,2]
[333919804,1722630647284,-500.0,0.00016438,2]
[333919805,1722630647294,-941.0,0.00016438,2]
[333919806,1722630647304,-500.0,0.00016438,2]
[333919807,1722630647313,-1690.3,0.00016438,2]
[333919808,1722630647322,-517.18,0.00016438,2]
[333919809,1722630647331,-3183.34,0.00016438,2]
[333919810,1722630647342,-500.0,0.00016438,2]
[333919811,1722630647352,-920.94,0.00016438,2]
[333919812,1722630647362,-2025.35,0.00016438,2]
[333919813,1722630647371,-1949.9,0.00016438,2]
[333919814,1722630647380,-2462.1,0.00016438,2]
[333919815,1722630647389,-1822.21,0.00016438,2]
[333919816,1722630647398,-500.0,0.00016438,2]
[333919817,1722630647407,-500.0,0.00016438,2]
[333919818,1722630647417,-1214.63,0.00016438,2]
[333919819,1722630647426,-500.0,0.00016438,2]
[333919820,1722630647435,-500.0,0.00016438,2]
[333919821,1722630647444,-608.97,0.00016438,2]
[333919822,1722630647453,-1253.9,0.00016438,2]
[333919823,1722630647462,-500.0,0.00016438,2]
[333919824,1722630647471,-878.69,0.00016438,2]
[333919825,1722630647481,-3408.67,0.00016438,2]
[333919826,1722630647490,-933.09,0.00016438,2]
[333919827,1722630647500,-1404.75,0.00016438,2]
[333919828,1722630647508,-500.0,0.00016438,2]
[333919829,1722630647518,-500.0,0.00016438,2]
[333919830,1722630647527,-1159.77,0.00016438,2]
[333919831,1722630647536,-500.0,0.00016438,2]
[333919832,1722630647544,-1947.52,0.00016438,2]
[333919833,1722630647554,-500.0,0.00016438,2]
[333919834,1722630647563,-1527.01,0.00016438,2]
[333919835,1722630647572,-500.0,0.00016438,2]
[333919836,1722630647582,-1290.02,0.00016438,2]
[333919837,1722630647592,-600.84,0.00016438,2]
[333919838,1722630647619,-500.0,0.00016438,2]
[333919839,1722630647629,-1139.61,0.00016438,2]
[333919840,1722630647638,-500.0,0.00016438,2]
[333919841,1722630647647,-1428.03,0.00016438,2]
[333919842,1722630647656,-786.35,0.00016438,2]
[333919843,1722630647665,-620.04,0.00016438,2]
[333919844,1722630647674,-500.0,0.00016438,2]
[333919845,1722630647683,-832.93322998,0.00016438,2]
[333919846,1722630647703,-54.21677002,0.00016438,2]
[333919847,1722630647712,-500.0,0.00016438,2]
[333919848,1722630647721,-754.78,0.00016438,2]
[333919849,1722630647730,-177.63253911,0.00016438,2]
[333919850,1722630647739,-1075.17,0.00016438,2]
[333919851,1722630647748,-1460.02,0.00016438,2]
[333919852,1722630647757,-1197.16,0.00016438,2]
[333919853,1722630647766,-500.0,0.00016438,2]
[333919854,1722630647776,-500.0,0.00016438,2]
[333919855,1722630647785,-627.69,0.00016438,2]
[333919856,1722630647794,-500.0,0.00016438,2]
[333919857,1722630647803,-663.31,0.00016438,2]
[333919858,1722630647812,-500.0,0.00016438,2]
[333919859,1722630647821,-1422.01,0.00016438,2]
[333919860,1722630647830,-500.0,0.00016438,2]
[333919861,1722630647839,-761.56,0.00016438,2]
[333919862,1722630647849,-500.0,0.00016438,2]
[333919863,1722630647859,-500.0,0.00016438,2]
[333919864,1722630647871,-651.39,0.00016438,2]
[333919865,1722630647881,-500.0,0.00016438,2]
[333919866,1722630647890,-1113.52,0.00016438,2]
[333919867,1722630647899,-2298.81,0.00016438,2]
[333919868,1722630647909,-1161.2,0.00016438,2]
[333919869,1722630647918,-603.35,0.00016438,2]
[333919870,1722630647927,-500.0,0.00016438,2]
[333919871,1722630647936,-1346.35,0.00016438,2]
[333919872,1722630647945,-500.0,0.00016438,2]
[333919873,1722630647954,-1068.31,0.00016438,2]
[333919874,1722630647964,-1041.06,0.00016438,2]
[333919875,1722630647973,-1951.57700191,0.00016438,2]
[333919876,1722630648007,-374.81131422,0.00016438,2]
[333919877,1722630648018,-253.93168387,0.00016438,2]
[333919878,1722630648028,-819.33,0.00016438,2]
[333919879,1722630648038,-500.0,0.00016438,2]
[333919880,1722630648047,-1015.19,0.00016438,2]
[333919881,1722630648056,-879.76,0.00016438,2]
[333919882,1722630648066,-1996.3,0.00016438,2]
[333919883,1722630648075,-143.07447569,0.00016438,2]
[333919884,1722630648143,-327.02149145,0.00016438,2]
[333919885,1722630648201,-517.04614379,0.00011896,2]
[333919886,1722630648212,-4482.95385621,0.00011896,2]
[333919887,1722630648222,-2318.96403286,0.00016438,2]
[333919888,1722630648231,-429.74221009,0.00016438,2]
[333919889,1722630648476,-253.44497898,0.00016438,2]
[333919890,1722630648487,-345.91147168,0.00016438,2]
[333919891,1722630648575,-96.12133925,0.00016438,2]
[333919892,1722630648584,-500.0,0.00016438,2]
[333919893,1722630648594,-313.96359806,0.00016438,2]
[333919894,1722630648604,-500.0,0.00016438,2]
[333919895,1722630648628,-823.31,0.00016438,2]
[333919896,1722630648637,-610.12285925,0.00016438,2]
[333919897,1722630648650,-204.34714075,0.00016438,2]
[333919898,1722630648660,-1174.14,0.00016438,2]
[333919899,1722630648669,-500.0,0.00016438,2]
[333919900,1722630648679,-500.0,0.00016438,2]
[333919901,1722630648688,-500.0,0.00016438,2]
[333919902,1722630648697,-500.0,0.00016438,2]
[333919903,1722630648706,-834.2,0.00016438,2]
[333919904,1722630648716,-650.45,0.00016438,2]
[333919905,1722630648725,-826.18,0.00016438,2]
[333919906,1722630648735,-500.0,0.00016438,2]
[333919907,1722630648744,-798.53,0.00016438,2]
[333919908,1722630648754,-500.0,0.00016438,2]
[333919909,1722630648763,-2796.43,0.00016438,2]
[333919910,1722630648773,-1250.94,0.00016438,2]
[333919911,1722630648782,-500.0,0.00016438,2]
[333919912,1722630648791,-1589.58,0.00016438,2]
[333919913,1722630648801,-2372.02,0.00016438,2]
[333919914,1722630648810,-671.44,0.00016438,2]
[333919915,1722630648820,-500.0,0.00016438,2]
[333919916,1722630648829,-1402.71,0.00016438,2]
[333919917,1722630648838,-631.22,0.00016438,2]
[333919918,1722630648848,-1961.93,0.00016438,2]
[333919919,1722630648857,-1006.46,0.00016438,2]
[333919920,1722630648867,-500.0,0.00016438,2]
[333919921,1722630648876,-1824.07,0.00016438,2]
[333919922,1722630648885,-1063.1,0.00016438,2]
[333919923,1722630648894,-500.0,0.00016438,2]
[333919924,1722630648904,-871.42,0.00016438,2]
[333919925,1722630648913,-660.37,0.00016438,2]
[333919926,1722630648922,-2148.65,0.00016438,2]
[333919927,1722630648931,-1904.56,0.00016438,2]
[333919928,1722630648941,-2637.48,0.00016438,2]
[333919929,1722630648950,-577.23,0.00016438,2]
[333919930,1722630648959,-500.0,0.00016438,2]
[333919931,1722630648968,-669.94,0.00016438,2]
[333919932,1722630648978,-500.0,0.00016438,2]
[333919933,1722630648987,-1969.03,0.00016438,2]
[333919934,1722630648996,-500.0,0.00016438,2]
[333919935,1722630649006,-500.0,0.00016438,2]
[333919936,1722630649015,-1423.18,0.00016438,2]
[333919937,1722630649025,-1071.34,0.00016438,2]
[333919938,1722630649036,-684.07,0.00016438,2]
[333919939,1722630649045,-500.0,0.00016438,2]
[333919940,1722630649054,-2390.54,0.00016438,2]
[333919941,1722630649064,-500.0,0.00016438,2]
[333919942,1722630649074,-744.84,0.00016438,2]
[333919943,1722630649083,-1500.76,0.00016438,2]
[333919944,1722630649092,-1910.9,0.00016438,2]
[333919945,1722630649102,-500.0,0.00016438,2]
[333919946,1722630649118,-500.0,0.00016438,2]
[333919947,1722630649132,-685.29,0.00016438,2]
[333919948,1722630649142,-977.19,0.00016438,2]
[333919949,1722630649152,-621.08,0.00016438,2]
[333919950,1722630649161,-1985.02,0.00016438,2]
[333919951,1722630649171,-500.0,0.00016438,2]
[333919952,1722630649180,-690.27,0.00016438,2]
[333919953,1722630649189,-500.0,0.00016438,2]
[333919954,1722630649199,-3527.1,0.00016438,2]
[333919955,1722630649209,-500.0,0.00016438,2]
[333919956,1722630649218,-1405.3,0.00016438,2]
[333919957,1722630649228,-500.0,0.00016438,2]
[333919958,1722630649237,-2360.06,0.00016438,2]
[333919959,1722630649247,-578.05,0.00016438,2]
[333919960,1722630649260,-500.0,0.00016438,2]
[333919961,1722630649269,-500.0,0.00016438,2]
[333919962,1722630649279,-500.0,0.00016438,2]
[333919963,1722630649288,-2725.09,0.00016438,2]
[333919964,1722630649298,-500.0,0.00016438,2]
[333919965,1722630649309,-1194.33,0.00016438,2]
[333919966,1722630649318,-2579.83,0.00016438,2]
[333919967,1722630649328,-500.0,0.00016438,2]
[333919968,1722630649340,-1254.45,0.00016438,2]
[333919969,1722630649350,-500.0,0.00016438,2]
[333919970,1722630649369,-723.49,0.00016438,2]
[333919971,1722630649379,-550.93,0.00016438,2]
[333919972,1722630649389,-500.0,0.00016438,2]
[333919973,1722630649398,-500.0,0.00016438,2]
[333919974,1722630649407,-279.25593161,0.00016438,2]
[333919975,1722630649417,-2372.38,0.00016438,2]
[333919976,1722630649426,-1949.93,0.00016438,2]
[333919977,1722630649436,-500.0,0.00016438,2]
[333919978,1722630649445,-1013.1,0.00016438,2]
[333919979,1722630649455,-500.0,0.00016438,2]
[333919980,1722630649465,-771.93,0.00016438,2]
[333919981,1722630649475,-1948.51,0.00016438,2]
[333919982,1722630649484,-941.11,0.00016438,2]
[333919983,1722630649494,-500.0,0.00016438,2]
[333919984,1722630649504,-500.0,0.00016438,2]
[333919985,1722630649514,-971.56,0.00016438,2]
[333919986,1722630649523,-500.0,0.00016438,2]
[333919987,1722630649533,-500.0,0.00016438,2]
[333919988,1722630649544,-1714.47,0.00016438,2]
[333919989,1722630649554,-1457.71,0.00016438,2]
[333919990,1722630649563,-500.0,0.00016438,2]
[333919991,1722630649573,-500.0,0.00016438,2]
[333919992,1722630649582,-834.53,0.00016438,2]
[333919993,1722630649591,-1468.83,0.00016438,2]
[333919994,1722630649600,-1298.33,0.00016438,2]
[333919995,1722630649620,-500.0,0.00016438,2]
[333919996,1722630649630,-572.77,0.00016438,2]
[333919997,1722630649640,-1536.08,0.00016438,2]
[333919998,1722630649656,-1633.58,0.00016438,2]
[333919999,1722630649669,-994.37,0.00016438,2]
[333920000,1722630649681,-1024.62,0.00016438,2]
[333920001,1722630649693,-1450.98,0.00016438,2]
[333920002,1722630649706,-1339.47,0.00016438,2]
[333920003,1722630649718,-1945.39,0.00016438,2]
[333920004,1722630649728,-500.0,0.00016438,2]
[333920005,1722630649739,-500.0,0.00016438,2]
[333920006,1722630649752,-983.06,0.00016438,2]
[333920007,1722630649764,-500.0,0.00016438,2]
[333920008,1722630649776,-1009.63,0.00016438,2]
[333920009,1722630649788,-895.21,0.00016438,2]
[333920010,1722630649799,-2455.42,0.00016438,2]
[333920011,1722630649815,-2880.84,0.00016438,2]
[333920012,1722630649827,-500.0,0.00016438,2]
[333920013,1722630649840,-508.64,0.00016438,2]
[333920014,1722630649853,-1500.63,0.00016438,2]
[333920015,1722630649880,-951.13,0.00016438,2]
[333920016,1722630649892,-500.0,0.00016438,2]
[333920017,1722630649903,-518.17,0.00016438,2]
[333920018,1722630649915,-500.0,0.00016438,2]
[333920019,1722630649928,-500.0,0.00016438,2]
[333920020,1722630649940,-563.45,0.00016438,2]
[333920021,1722630649951,-500.0,0.00016438,2]
[333920022,1722630649964,-500.0,0.00016438,2]
[333920023,1722630649976,-1650.02,0.00016438,2]
[333920024,1722630649988,-740.74,0.00016438,2]
[333920025,1722630650001,-439.16620001,0.00016438,2]
[333920026,1722630650021,-414.79379999,0.00016438,2]
[333920027,1722630650031,-590.96,0.00016438,2]
[333920028,1722630650041,-2494.57,0.00016438,2]
[333920029,1722630650054,-500.0,0.00016438,2]
[333920030,1722630650064,-500.0,0.00016438,2]
[333920031,1722630650077,-500.0,0.00016438,2]
[333920032,1722630650089,-3766.96,0.00016438,2]
[333920033,1722630650100,-500.0,0.00016438,2]
[333920034,1722630650124,-1336.18,0.00016438,2]
[333920035,1722630650135,-500.0,0.00016438,2]
[333920036,1722630650148,-500.0,0.00016438,2]
[333920037,1722630650161,-500.0,0.00016438,2]
[333920038,1722630650174,-2675.67,0.00016438,2]
[333920039,1722630650186,-500.0,0.00016438,2]
[333920040,1722630650198,-500.0,0.00016438,2]
[333920041,1722630650209,-796.7,0.00016438,2]
[333920042,1722630650219,-208.95560999,0.00016438,2]
[333920043,1722630650230,-1637.81,0.00016438,2]
[333920044,1722630650240,-500.0,0.00016438,2]
[333920045,1722630650251,-500.0,0.00016438,2]
[333920046,1722630650266,-500.0,0.00016438,2]
[333920047,1722630650278,-500.0,0.00016438,2]
[333920048,1722630650291,-2184.3,0.00016438,2]
[333920049,1722630650305,-500.0,0.00016438,2]
[333920050,1722630650316,-1258.84,0.00016438,2]
[333920051,1722630650327,-1184.07960674,0.00016438,2]
[333920052,1722630650417,-3792.47816779,0.00016143,2]
[333920053,1722630651405,-1723.52276409,0.00016143,2]
[333920054,1722630651423,-4483.99906812,0.00016143,2]
[333920055,1722630651434,-2092.29039326,0.00016438,2]
[333920056,1722630651445,-500.0,0.00016438,2]
[333920057,1722630651456,-500.0,0.00016438,2]
[333920058,1722630651468,-2009.38,0.00016438,2]
[333920059,1722630651479,-500.0,0.00016438,2]
[333920060,1722630651491,-500.0,0.00016438,2]
[333920061,1722630651503,-244.48324845,0.00016438,2]
[333920062,1722630651515,-438.62011473,0.00016438,2]
[333920063,1722630651527,-500.0,0.00016438,2]
[333920064,1722630651537,-992.35,0.00016438,2]
[333920065,1722630651548,-967.1,0.00016438,2]
[333920066,1722630651558,-2600.11,0.00016438,2]
[333920067,1722630651569,-1155.91,0.00016438,2]
[333920068,1722630651579,-2464.11,0.00016438,2]
[333920069,1722630651589,-4480.86,0.00016438,2]
[333920070,1722630651600,-592.87,0.00016438,2]
[333920071,1722630651618,-500.0,0.00016438,2]
[333920072,1722630651628,-1692.7,0.00016438,2]
[333920073,1722630651639,-500.0,0.00016438,2]
[333920074,1722630651653,-2046.17,0.00016438,2]
[333920075,1722630651663,-531.27,0.00016438,2]
[333920077,1722630651673,-509.21,0.00016438,2]
[333920078,1722630651685,-500.0,0.00016438,2]
[333920079,1722630651695,-2980.46,0.00016438,2]
[333920080,1722630651705,-1552.58,0.00016438,2]
[333920081,1722630651715,-5232.55,0.00016438,2]
[333920082,1722630651726,-197.735956,0.00016438,2]
[333920083,1722630651736,-653.88,0.00016438,2]
[333920084,1722630651748,-500.0,0.00016438,2]
[333920085,1722630651759,-500.0,0.00016438,2]
[333920086,1722630651769,-901.67,0.00016438,2]
[333920087,1722630651779,-1173.54,0.00016438,2]
[333920088,1722630651791,-500.0,0.00016438,2]
[333920089,1722630651801,-500.0,0.00016438,2]
[333920090,1722630651813,-500.0,0.00016438,2]
[333920091,1722630651824,-2352.18,0.00016438,2]
[333920092,1722630651834,-500.0,0.00016438,2]
[333920093,1722630651844,-500.0,0.00016438,2]
[333920094,1722630651855,-500.0,0.00016438,2]
[333920095,1722630651873,-500.0,0.00016438,2]
[333920096,1722630651883,-737.31,0.00016438,2]
[333920097,1722630651894,-500.0,0.00016438,2]
[333920098,1722630651904,-978.46,0.00016438,2]
[333920099,1722630651914,-500.0,0.00016438,2]
[333920100,1722630651924,-1252.98,0.00016438,2]
[333920101,1722630651935,-543.28,0.00016438,2]
[333920102,1722630651946,-500.0,0.00016438,2]
[333920103,1722630651957,-2095.92,0.00016438,2]
[333920104,1722630651968,-568.82,0.00016438,2]
[333920105,1722630651979,-2429.81,0.00016438,2]
[333920106,1722630651990,-4663.17,0.00016438,2]
[333920107,1722630652000,-693.74,0.00016438,2]
[333920108,1722630652011,-727.82,0.00016438,2]
[333920109,1722630652021,-3687.33,0.00016438,2]
[333920110,1722630652031,-682.9,0.00016438,2]
[333920111,1722630652042,-889.26,0.00016438,2]
[333920112,1722630652052,-884.24,0.00016438,2]
[333920113,1722630652063,-873.65,0.00016438,2]
[333920114,1722630652073,-4060.09,0.00016438,2]
[333920115,1722630652083,-1992.81,0.00016438,2]
[333920116,1722630652094,-500.0,0.00016438,2]
[333920117,1722630652105,-2243.8,0.00016438,2]
[333920118,1722630652123,-500.0,0.00016438,2]
[333920119,1722630652135,-1783.25936,0.00016438,2]